bitfinex/quotes_ETHUSD_20260207
["timestamp","ask_amount","ask_price","bid_price","bid_amount"]
[1770441690960,5.92597438,2100.7,2099.4,1.19081465]
[1770441690961,0.003,2102.4,2100.3,0.91432094]
[1770441691260,1.19215201,2102.4,2102.2,0.8925512]
[1770441691472,1.19211719,2102.4,2102.3,5.6788362]
[1770441691633,0.003,2102.4,2102.3,5.6788362]
[1770441692166,0.003,2102.4,2101.7,1.1894966]
[1770441692395,0.003,2102.4,2101.5,0.91432094]
[1770441692871,0.003,2102.4,2101.4,1.18967466]
[1770441693070,0.05026328,2102.3,2101.3,0.24805463]
[1770441693375,0.2335703,2102.1,2101.3,0.24805463]
[1770441693738,0.05026328,2101.9,2101.3,0.24805463]
[1770441694065,0.67331838,2101.9,2101.3,0.24805463]
[1770441695960,1.18945665,2101.8,2101.3,0.24805463]
[1770441696139,1.18945665,2101.8,2100.7,1.19007234]
[1770441696343,1.18945665,2101.8,2100.8,1.19001959]
[1770441696667,0.05026328,2101.6,2100.5,0.24758264]
[1770441697060,0.05026328,2101.6,2100.4,1.19021567]
[1770441697260,0.05026328,2101.6,2100.5,1.1901924]
[1770441697563,0.05026328,2101.6,2100.5,1.19019138]
[1770441697746,0.05026328,2101.6,2100.2,2.09781346]
[1770441697747,0.05026328,2101.2,2100.2,2.09781346]
[1770441697948,1.18985293,2101.1,2100.2,2.7837591]
[1770441699473,1.18985293,2101.1,2100.2,1.19032702]
[1770441699669,1.18985293,2101.1,2100.1,1.19037921]
[1770441699848,1.18985293,2101.1,2100.0,1.19044294]
[1770441699849,0.2335703,2101.1,2100.0,1.19044294]
[1770441700469,0.001,2102.1,2101.1,0.90748644]
[1770441700651,4.75458655,2103.3,2103.1,0.89953583]
[1770441700856,1.31952646,2103.4,2103.3,0.64487039]
[1770441701173,1.18787418,2104.6,2102.8,0.90748644]
[1770441701340,1.23813746,2104.6,2103.0,0.90748644]
[1770441701543,1.18787418,2104.6,2103.1,0.90748644]
[1770441702278,0.37684436,2105.0,2103.8,0.90748644]
[1770441702279,0.32658108,2105.0,2103.8,0.90748644]
[1770441702464,1.18767943,2105.0,2104.0,0.90748644]
[1770441702648,1.18719726,2105.8,2104.2,11.69851]
[1770441702847,1.18719726,2105.8,2104.3,0.90748644]
[1770441703345,0.92403914,2106.0,2104.1,0.90748644]
[1770441703758,0.05026328,2105.8,2104.1,0.90748644]
[1770441704159,0.05026328,2104.9,2103.5,0.90748644]
[1770441704355,0.05026328,2104.9,2103.3,1.18860772]
[1770441704356,0.05026328,2104.6,2103.3,1.18860772]
[1770441704555,0.2335703,2104.8,2103.3,1.18860642]
[1770441704774,0.2335703,2104.8,2102.9,0.90748644]
[1770441704775,0.05026328,2104.3,2102.9,0.90748644]
[1770441704963,0.05026328,2104.2,2102.9,1.18881598]
[1770441705282,0.2335703,2104.1,2102.7,1.18894247]
[1770441705646,0.2335703,2104.1,2102.6,1.18896522]
[1770441705953,0.05026328,2104.9,2102.9,0.90748644]
[1770441706153,1.18781774,2104.7,2103.2,4.018038]
[1770441706466,1.18781774,2104.7,2103.3,0.90748644]
[1770441706852,1.18781774,2104.7,2103.4,2.994]
[1770441707183,1.18781774,2104.7,2103.3,0.90748644]
[1770441707561,0.001,2104.4,2103.3,0.90748644]
[1770441708078,0.001,2104.4,2103.4,2.413201]
[1770441708277,0.001,2104.4,2103.5,1.18849536]
[1770441708463,0.001,2104.4,2103.6,2.310736]
[1770441708667,0.001,2104.4,2103.5,1.18549536]
[1770441708864,0.001,2104.4,2103.6,0.59394768]
[1770441709078,0.001,2104.4,2103.4,1.18851451]
[1770441709250,0.00126328,2104.8,2103.4,1.18851451]
[1770441709451,0.00126328,2104.8,2103.4,1.18854006]
[1770441709968,0.92530242,2104.8,2103.3,1.1886006]
[1770441710173,1.42138804,2104.7,2103.1,5.66221804]
[1770441710474,0.92403914,2106.0,2104.2,0.1024]
[1770441710648,4.74856355,2106.3,2105.7,11.209765]
[1770441711073,4.74856355,2106.3,2104.7,0.024764]
[1770441711278,4.74856355,2106.3,2104.8,3.812392]
[1770441711279,1.18691544,2106.3,2104.8,3.812392]
[1770441711450,1.18691544,2106.3,2104.9,0.3939556]
[1770441711652,1.18691544,2106.3,2105.0,2.444411]
[1770441712585,0.97430242,2106.9,2105.0,2.444411]
[1770441712586,1.18663375,2106.8,2105.1,1.18759203]
[1770441712758,0.92403914,2106.7,2105.1,1.18759203]
[1770441713078,0.92403914,2106.5,2105.0,1.18760888]
[1770441713251,0.97430242,2106.5,2105.0,1.18760888]
[1770441713577,4.108109,2106.4,2105.0,1.18760888]
[1770441713780,0.92403914,2106.3,2104.9,1.18770075]
[1770441714077,0.05026328,2106.5,2104.7,0.024764]
[1770441714078,0.97430242,2106.2,2104.7,0.024764]
[1770441714286,0.97430242,2105.9,2104.7,0.024764]
[1770441714490,0.92403914,2105.7,2104.7,0.024764]
[1770441714653,0.2335703,2105.4,2104.7,0.024764]
[1770441714998,0.92403914,2105.4,2104.7,0.024764]
[1770441716092,0.92403914,2105.4,2104.0,1.18817949]
[1770441716389,1.18759203,2105.1,2104.0,0.5941148]
[1770441716608,1.18759203,2105.1,2103.5,4.75377254]
[1770441716609,0.92403914,2105.0,2103.5,4.75377254]
[1770441716811,0.92403914,2105.0,2103.7,1.18837532]
[1770441717088,0.92403914,2105.0,2103.8,1.18832109]
[1770441717395,0.92403914,2105.0,2103.4,4.75414925]
[1770441717396,0.92403914,2105.0,2103.5,4.7539235]
[1770441717570,1.18759203,2105.1,2104.0,1.18820958]
[1770441717770,1.18759203,2105.1,2103.9,1.18823177]
[1770441718482,5.72467057,2105.3,2103.5,4.7539235]
[1770441719662,0.92403914,2105.2,2103.5,4.7539235]
[1770441719986,0.92403914,2105.2,2104.9,0.0011]
[1770441720288,0.92403914,2105.2,2103.5,4.7539235]
[1770441720591,1.18759203,2105.1,2104.6,0.0011]
[1770441721285,1.18759203,2105.1,2103.8,0.0011]
[1770441722394,1.18759203,2105.1,2103.9,2.206368]
[1770441722686,1.18736642,2105.5,2103.8,0.87557963]
[1770441722985,2.11140556,2105.5,2103.9,5.250749]
[1770441723208,0.92403914,2105.4,2103.8,0.0011]
[1770441724692,0.92403914,2105.2,2103.8,0.0011]
[1770441726896,0.90941995,2105.0,2103.8,0.0011]
[1770441727779,0.95968323,2105.0,2103.8,0.0011]
[1770441728474,0.94965112,2104.8,2103.8,0.0011]
[1770441728670,0.94965112,2104.6,2103.8,0.0011]
[1770441728871,0.94965112,2104.4,2103.8,0.0011]
[1770441729077,1.18793062,2104.5,2103.8,0.0011]
[1770441730183,4.75081241,2105.0,2103.8,0.0011]
[1770441730184,1.18759203,2105.1,2103.8,0.0011]
[1770441730584,4.74964496,2105.5,2103.8,0.0011]
[1770441730585,1.18742281,2105.5,2103.9,4.05192069]
[1770441730787,1.18742281,2105.5,2103.9,0.87447569]
[1770441730989,1.18742281,2105.5,2104.1,3.04981169]
[1770441731294,1.18742281,2105.5,2104.2,0.42380246]
[1770441731503,1.18742281,2105.5,2104.3,0.04752174]
[1770441732468,1.18742281,2105.5,2104.0,1.18821292]
[1770441732469,1.18714088,2105.9,2104.4,3.06317495]
[1770441732680,1.18714088,2105.9,2104.4,0.92199217]
[1770441732892,1.18714088,2105.9,2104.5,1.18793062]
[1770441733093,1.18714088,2105.9,2104.6,0.68616453]
[1770441733505,2.136792,2105.9,2104.6,0.68616453]
[1770441734566,2.136792,2105.9,2104.6,0.73367723]
[1770441734788,0.9999144,2105.6,2104.0,0.0011]
[1770441734998,0.94965112,2105.4,2104.0,0.0011]
[1770441735298,0.94965112,2105.2,2104.0,0.0011]
[1770441735873,1.18736642,2105.5,2104.0,0.0011]
[1770441736493,2.13701754,2105.5,2104.0,0.0011]
[1770441737390,0.9999144,2105.3,2104.0,0.0011]
[1770441738990,1.18753562,2105.2,2104.0,0.0011]
[1770441740208,0.94965112,2105.1,2104.0,0.0011]
[1770441740504,1.18753562,2105.2,2104.0,0.0011]
[1770441740908,1.18753562,2105.2,2104.0,0.87557218]
[1770441741109,4.749954,2105.4,2104.1,1.18815645]
[1770441741584,4.749954,2105.4,2104.1,2.0626283]
[1770441741781,0.003,2106.0,2104.2,0.87447185]
[1770441741782,1.18725364,2105.7,2104.2,0.87447185]
[1770441743292,4.74895129,2105.8,2104.3,1.18804352]
[1770441743497,4.74895129,2105.8,2104.4,0.68146895]
[1770441744276,4.74895129,2105.8,2104.4,1.55594015]
[1770441744510,4.74895129,2105.8,2104.5,0.87447089]
[1770441745381,4.74895129,2105.8,2104.6,1.18787418]
[1770441745786,0.94965112,2105.7,2104.5,1.1879298]
[1770441747480,1.18731003,2105.6,2104.4,0.0011]
[1770441749511,1.18731003,2105.6,2104.4,0.87556935]
[1770441749712,5.69889124,2105.9,2104.5,1.18793062]
[1770441749897,0.94965112,2105.8,2104.5,1.18793062]
[1770441750297,0.94965112,2105.8,2104.4,0.0011]
[1770441750499,0.94965112,2105.5,2104.4,0.0011]
[1770441750695,0.94965112,2105.8,2104.4,1.18907981]
[1770441751632,0.05026328,2105.6,2104.4,0.0011]
[1770441751922,0.9999144,2105.6,2104.4,0.0011]
[1770441753596,1.18736642,2105.5,2104.4,0.0011]
[1770441754108,2.13701754,2105.5,2104.4,0.0011]
[1770441754312,0.94965112,2105.2,2104.4,0.0011]
[1770441754912,2.13701754,2105.5,2104.4,0.0011]
[1770441755796,0.94709444,2105.4,2104.4,0.0011]
[1770441757299,1.18736642,2105.5,2104.4,0.0011]
[1770441757696,4.74946568,2105.6,2104.4,0.0011]
[1770441758533,0.001,2105.5,2104.4,0.0011]
[1770441758839,0.001,2105.5,2104.4,0.87556653]
[1770441758999,0.94809444,2105.5,2104.4,0.0011]
[1770441759195,0.001,2105.5,2104.4,0.0011]
[1770441759824,0.001,2105.5,2104.4,0.87556627]
[1770441760535,0.001,2105.5,2104.6,0.87446601]
[1770441760695,0.001,2105.5,2104.4,0.0011]
[1770441761423,0.001,2105.5,2104.7,2.225637]
[1770441761734,0.001,2105.5,2104.8,0.87446575]
[1770441761928,0.001,2105.5,2104.9,1.18770487]
[1770441762130,0.001,2105.5,2105.0,0.68129901]
[1770441762903,0.001,2105.5,2105.0,1.5557645]
[1770441763434,0.001,2105.5,2105.0,0.68129901]
[1770441764006,0.001,2105.5,2105.1,1.18759203]
[1770441764419,0.001,2105.5,2105.0,0.68129901]
[1770441764625,0.001,2105.5,2104.9,1.18770425]
[1770441764831,0.001,2105.5,2105.0,1.18762718]
[1770441765119,0.001,2105.5,2104.9,1.18767946]
[1770441765513,0.001,2105.5,2105.0,1.18764038]
[1770441766016,0.001,2105.5,2104.4,2.06355182]
[1770441766333,0.001,2105.5,2104.6,2.287426]
[1770441766650,0.001,2105.5,2104.6,0.8744645]
[1770441768149,0.001,2105.5,2104.7,2.062282]
[1770441768315,0.001,2105.5,2104.8,3.724033]
[1770441768654,0.001,2105.5,2104.8,0.87446402]
[1770441769338,0.001,2105.5,2104.7,1.18781774]
[1770441769652,0.001,2105.5,2104.8,0.59390887]
[1770441770554,0.001,2105.5,2104.8,1.78163538]
[1770441771852,0.001,2105.3,2104.8,1.78163538]
[1770441774667,0.94519094,2106.3,2105.1,0.92372593]
[1770441774830,1.89228538,2106.3,2105.2,0.78322209]
[1770441775029,1.89228538,2106.3,2104.9,0.97586265]
[1770441775848,0.94709444,2106.2,2104.9,0.87346265]
[1770441776045,0.94709444,2106.2,2104.8,1.78163538]
[1770441777127,2.13412259,2106.1,2104.8,1.78163538]
[1770441777337,0.94709444,2106.0,2104.9,0.65328803]
[1770441778736,0.99735772,2105.9,2104.9,0.65328803]
[1770441779056,0.99735772,2105.9,2104.8,1.18775448]
[1770441779057,0.94709444,2105.9,2104.8,1.18775448]
[1770441779358,1.18719726,2105.8,2104.7,4.75126596]
[1770441780132,1.18719726,2105.8,2104.7,1.18781774]
[1770441780762,2.1342917,2105.8,2104.7,1.18781774]
[1770441781762,0.94709444,2105.7,2104.7,1.18781774]
[1770441781961,0.94709444,2105.7,2104.8,0.59403589]
[1770441782975,0.94709444,2105.3,2104.6,0.0011]
[1770441783335,1.18753562,2105.2,2104.6,0.0011]
[1770441784259,1.18753562,2105.2,2104.8,0.0011]
[1770441784866,2.13463006,2105.2,2104.8,0.0011]
[1770441785168,0.94709444,2105.1,2104.5,0.0011]
[1770441785461,0.94709444,2105.1,2104.0,0.0011]
[1770441785462,0.94709444,2104.9,2104.0,0.0011]
[1770441788166,0.92455182,2104.7,2104.0,0.0011]
[1770441788368,1.1877613,2104.8,2104.0,0.0011]
[1770441788942,1.1877613,2104.8,2104.0,0.87455942]
[1770441789473,1.1877613,2104.8,2104.0,0.0011]
[1770441790344,0.95646509,2105.2,2104.0,0.0011]
[1770441792366,1.18759203,2105.1,2104.0,0.8745587]
[1770441792573,1.18759203,2105.1,2104.1,0.8734587]
[1770441793080,4.74950409,2105.5,2104.4,4.4498767]
[1770441793363,1.18833617,2105.6,2104.4,0.8734587]
[1770441793536,1.18833617,2105.6,2104.5,2.987]
[1770441793735,1.18833617,2105.6,2104.4,0.8734587]
[1770441794644,0.95746509,2105.6,2104.5,1.18793062]
[1770441796753,2.14383151,2105.5,2104.5,1.18793062]
[1770441797072,0.001,2105.4,2104.5,1.18793062]
[1770441798878,0.001,2105.4,2104.2,1.18919999]
[1770441799179,0.95746509,2105.4,2104.2,1.18919999]
[1770441799575,0.95646509,2105.0,2104.2,0.0011]
[1770441801153,2.14416996,2104.9,2104.2,0.0011]
[1770441801353,0.95646509,2104.8,2104.2,0.0011]
[1770441803180,0.95646509,2104.6,2104.2,0.0011]
[1770441805278,1.18793062,2104.5,2104.2,0.0011]
[1770441807488,2.14439571,2104.5,2104.2,0.0011]
[1770441808578,1.18793062,2104.5,2104.2,0.0011]
[1770441809490,1.18781774,2104.7,2104.4,0.0011]
[1770441809992,0.95646509,2104.6,2104.2,0.0011]
[1770441810161,0.95646509,2104.4,2103.8,0.0011]
[1770441811566,0.95646509,2104.2,2103.8,0.0011]
[1770441812160,0.95646509,2104.2,2103.1,0.0011]
[1770441812356,0.95646509,2104.2,2103.1,1.55762661]
[1770441813069,0.95646509,2104.2,2103.2,0.87455557]
[1770441813267,1.18804352,2104.3,2103.2,0.87455557]
[1770441814777,0.95646509,2104.3,2103.2,2.06318299]
[1770441815385,0.95646509,2104.3,2103.1,0.0011]
[1770441815693,0.95646509,2104.3,2103.1,1.75285652]
[1770441816069,0.95646509,2104.3,2103.1,0.56416962]
[1770441816277,0.95646509,2104.3,2103.2,1.18865318]
[1770441816594,0.95646509,2104.3,2103.2,2.06320808]
[1770441816783,1.18809999,2104.2,2103.2,2.06320808]
[1770441816964,1.18809999,2104.2,2103.3,1.61275863]
[1770441817163,2.12581442,2104.2,2103.3,0.73820373]
[1770441817597,0.93771443,2104.1,2103.3,0.73820373]
[1770441817787,0.98797771,2103.3,2102.0,2.06386747]
[1770441817972,0.93771443,2103.3,2102.3,1.18911871]
[1770441818170,0.93771443,2103.3,2102.2,1.18918734]
[1770441818472,0.93771443,2103.3,2102.3,1.78379242]
[1770441818999,1.18866489,2103.2,2102.3,0.59462439]
[1770441819195,1.18866489,2103.2,2102.3,1.78379274]
[1770441820301,1.18866489,2103.2,2102.3,2.65834725]
[1770441820964,0.93771443,2103.4,2102.3,1.78379274]
[1770441821164,0.48038089,2103.6,2102.4,0.65407083]
[1770441821369,0.93771443,2103.5,2102.4,0.65407083]
[1770441822088,0.93771443,2103.5,2103.0,0.0011]
[1770441822267,4.7535456,2103.7,2103.0,0.0011]
[1770441822594,5.69126003,2103.7,2103.0,0.0011]
[1770441822793,0.93771443,2103.6,2103.0,0.0011]
[1770441823470,1.18832588,2103.8,2103.0,0.0011]
[1770441824693,2.12604031,2103.8,2103.0,0.0011]
[1770441825879,0.93771443,2103.8,2103.0,0.0011]
[1770441826083,1.1882694,2103.9,2103.0,0.87675377]
[1770441826496,2.12598383,2103.9,2103.0,0.0011]
[1770441828975,0.93771443,2103.8,2103.0,0.0011]
[1770441829901,1.18838237,2103.7,2103.0,0.0011]
[1770441830484,2.1260968,2103.7,2103.0,0.0011]
[1770441831271,5.69172225,2104.0,2103.0,0.0011]
[1770441831472,1.18830355,2103.9,2103.0,0.0011]
[1770441831907,0.93771443,2103.8,2103.0,0.0011]
[1770441832111,2.1260968,2103.7,2103.0,0.0011]
[1770441832406,0.93771443,2103.6,2103.0,0.0011]
[1770441833392,1.18838237,2103.7,2103.0,0.0011]
[1770441833732,1.18924211,2104.0,2103.0,0.87675287]
[1770441834077,1.18924211,2104.0,2103.1,2.06437428]
[1770441834280,0.001,2104.0,2103.2,0.68203599]
[1770441834481,0.001,2104.0,2103.2,0.68313599]
[1770441834711,0.001,2103.5,2103.3,0.87565276]
[1770441834895,0.001,2104.0,2103.3,0.87565276]
[1770441835295,0.001,2104.0,2103.2,0.68313599]
[1770441836104,0.001,2104.0,2103.2,1.87175305]
[1770441837005,0.001,2104.0,2103.2,2.7474056]
[1770441837791,0.001,2104.0,2103.2,1.87175305]
[1770441837996,0.001,2104.0,2103.3,0.87565245]
[1770441838199,0.001,2104.0,2103.4,1.18855186]
[1770441838404,0.001,2104.0,2103.5,0.68184118]
[1770441839138,1.18803046,2104.4,2103.5,0.68184118]
[1770441839701,1.18797204,2104.5,2103.5,1.55749342]
[1770441840508,1.18797204,2104.5,2103.6,1.18843886]
[1770441841897,2.12568647,2104.5,2103.6,1.18843886]
[1770441842100,2.12568647,2104.5,2103.7,0.74996877]
[1770441842821,2.12568647,2104.5,2103.8,1.18832588]
[1770441843020,2.12568647,2104.5,2103.7,1.93831532]
[1770441843921,0.93771443,2103.9,2102.8,4.75543289]
[1770441844220,0.93771443,2103.9,2103.2,0.0011]
[1770441844600,1.18832588,2103.8,2103.2,0.0011]
[1770441844799,2.12604031,2103.8,2103.2,0.0011]
[1770441845726,0.93771443,2103.7,2103.2,0.0011]
[1770441845931,0.98110094,2103.5,2103.0,0.0011]
[1770441846597,0.98110094,2103.3,2102.3,1.18912518]
[1770441846802,2.16976583,2103.2,2102.3,0.68238098]
[1770441847152,0.98110094,2103.1,2102.3,0.68238098]
[1770441847434,0.98110094,2102.8,2102.2,0.0011]
[1770441848263,4.75381418,2103.6,2102.2,0.87675129]
[1770441848560,0.98110094,2103.4,2102.2,0.0011]
[1770441848704,2.18812107,2103.3,2102.2,0.0011]
[1770441848903,0.9995127,2103.2,2102.2,0.68352363]
[1770441849531,1.18860837,2103.3,2102.2,0.68352363]
[1770441849837,0.9995127,2103.8,2102.4,0.87565111]
[1770441850033,1.02167122,2103.7,2102.4,0.87565111]
[1770441850232,4.75282252,2104.1,2102.2,0.68352363]
[1770441850233,0.9995127,2104.0,2102.6,0.87565111]
[1770441850409,0.9995127,2103.8,2102.3,0.87565103]
[1770441850612,2.02115752,2103.7,2102.3,0.87565103]
[1770441850834,2.18800806,2103.5,2102.4,1.18911719]
[1770441852552,0.9995127,2103.4,2102.4,1.18911719]
[1770441852718,0.9995127,2103.4,2102.3,1.18913354]
[1770441852719,1.18860837,2103.3,2102.3,1.18913354]
[1770441852902,1.18860837,2103.3,2102.4,0.66295533]
[1770441853109,0.9995127,2103.2,2102.4,0.66295533]
[1770441853716,0.9995127,2103.2,2102.2,1.19029706]
[1770441853916,0.9995127,2103.2,2102.3,1.18916675]
[1770441854434,0.9995127,2103.2,2102.2,0.0011]
[1770441854435,0.9995127,2103.2,2102.2,1.19028982]
[1770441854640,0.9995127,2103.2,2102.2,0.0011]
[1770441854811,1.18872141,2103.1,2102.2,0.0011]
[1770441855017,0.52262636,2103.1,2102.2,0.0011]
[1770441855226,1.18855186,2103.4,2102.2,0.87675069]
[1770441855858,2.18806456,2103.4,2102.2,0.87675069]
[1770441856017,0.9995127,2103.3,2102.2,0.0011]
[1770441856339,0.9995127,2103.2,2102.2,0.0011]
[1770441856537,0.9995127,2103.2,2102.2,0.59596345]
[1770441856922,1.18872141,2103.1,2102.2,1.78518741]
[1770441857437,1.18864872,2103.3,2102.2,2.66083785]
[1770441859025,3.40705604,2104.3,2102.7,0.87565037]
[1770441859222,0.001,2103.0,2102.7,0.87565037]
[1770441859534,0.7555127,2104.1,2102.9,5.09459541]
[1770441859732,0.7555127,2104.1,2102.9,0.93796641]
[1770441860239,1.52880559,2104.2,2102.9,0.93796641]
[1770441861429,1.52880559,2104.2,2103.0,1.18877793]
[1770441861637,1.18809999,2104.2,2103.1,0.68818561]
[1770441862357,0.001,2104.3,2103.2,7.248704]
[1770441862557,0.001,2104.3,2103.5,0.93796641]
[1770441862733,0.001,2104.3,2103.7,0.93796641]
[1770441862934,0.001,2104.3,2103.8,0.97425514]
[1770441863164,0.001,2104.3,2103.7,0.93796641]
[1770441863467,0.001,2104.3,2103.8,1.18832588]
[1770441864133,2.18719763,2105.0,2103.8,2.12629229]
[1770441864336,0.9995127,2104.9,2103.8,1.18832588]
[1770441865034,1.18768493,2105.0,2103.8,2.12629229]
[1770441865332,1.18768493,2105.0,2103.9,0.68795958]
[1770441865947,1.18768493,2105.0,2104.0,1.18821292]
[1770441866554,2.18710925,2105.1,2104.0,2.12617933]
[1770441866760,1.18747921,2105.3,2104.1,0.93796641]
[1770441867928,1.18747921,2105.3,2104.2,1.18809999]
[1770441868130,2.18796932,2105.4,2104.2,1.18809999]
[1770441868361,2.18796932,2105.4,2104.3,3.08837841]
[1770441868548,2.18796932,2105.4,2104.3,0.93796641]
[1770441868930,0.9995127,2105.3,2104.2,1.18809999]
[1770441869131,0.9995127,2105.3,2104.3,0.59405]
[1770441869935,2.18702712,2105.3,2104.4,1.18798707]
[1770441871538,0.001,2105.1,2104.4,1.18798707]
[1770441872761,1.0005127,2105.1,2104.1,1.18813988]
[1770441873062,1.0005127,2105.1,2104.1,1.18815294]
[1770441873265,1.0005127,2105.1,2103.9,1.18822673]
[1770441873466,1.0005127,2105.1,2103.9,1.78237367]
[1770441873845,1.0005127,2105.1,2103.9,1.78237279]
[1770441874155,0.9995127,2104.9,2103.9,1.78237596]
[1770441874360,0.9995127,2104.9,2103.9,1.18822902]
[1770441874734,1.18764845,2105.0,2103.9,2.12619543]
[1770441875359,1.18764845,2105.0,2103.9,1.18822902]
[1770441875550,0.9995127,2104.9,2103.9,1.18822902]
[1770441875749,0.9995127,2104.9,2104.0,0.59414717]
[1770441876259,1.1877613,2104.8,2104.1,1.18815645]
[1770441878248,0.9698414,2104.8,2104.1,1.18815645]
[1770441879362,0.9698414,2104.8,2104.0,1.78231784]
[1770441880241,1.18781774,2104.7,2104.0,1.78231784]
[1770441880442,2.7515456,2104.7,2104.0,1.78231784]
[1770441880647,0.9698414,2104.6,2103.9,1.1882686]
[1770441881072,0.59388646,2104.7,2104.0,1.18820247]
[1770441881943,1.18777351,2104.8,2104.0,1.18820247]
[1770441882760,1.18777351,2104.8,2103.9,4.75285171]
[1770441883473,1.18777351,2104.8,2103.9,1.1882694]
[1770441883474,0.9698414,2104.7,2103.9,1.1882694]
[1770441883644,0.9698414,2104.7,2103.7,1.18835228]
[1770441883848,0.9698414,2104.7,2103.7,1.7825507]
[1770441884047,0.9698414,2104.7,2104.2,0.0011]
[1770441884650,0.9698414,2104.5,2104.2,0.0011]
[1770441885470,0.001,2104.6,2104.2,0.0011]
[1770441885855,0.9708414,2104.6,2104.2,0.0011]
[1770441886573,1.18742281,2105.4,2104.2,0.9422104]
[1770441886776,2.63253171,2105.4,2104.3,1.18804352]
[1770441887144,2.63253171,2105.4,2104.3,2.12915392]
[1770441889147,1.02257107,2105.3,2104.3,2.12915392]
[1770441889347,2.63253171,2105.4,2104.3,2.12915392]
[1770441889589,1.02257082,2105.3,2104.4,0.6882428]
[1770441889750,2.15726421,2105.4,2104.4,0.6882428]
[1770441890076,1.99241226,2105.3,2104.4,0.6882428]
[1770441890374,0.9698414,2105.3,2104.4,0.6882428]
[1770441891142,1.18742281,2105.4,2104.5,1.18793062]
[1770441891378,1.02353744,2105.3,2104.6,0.66278959]
[1770441891558,1.18742281,2105.4,2104.6,0.66278959]
[1770441891757,1.02353639,2105.3,2104.6,0.66278959]
[1770441891950,1.18742281,2105.4,2104.6,0.66278959]
[1770441892177,1.02353627,2105.3,2104.6,0.66278959]
[1770441892382,1.02353627,2105.2,2104.6,0.66278959]
[1770441892583,2.15726421,2105.4,2104.6,0.66278959]
[1770441892887,1.4695682,2104.5,2103.5,1.1884673]
[1770441893084,0.9698414,2104.1,2103.3,0.0011]
[1770441893408,0.9698414,2103.9,2103.3,0.0011]
[1770441893979,0.9698414,2103.7,2103.0,0.0011]
[1770441894182,1.99431488,2103.6,2103.0,0.0011]
[1770441894386,1.02447348,2103.5,2103.0,0.0011]
[1770441894682,0.9698414,2103.6,2103.0,0.0011]
[1770441894887,1.0229656,2103.5,2103.0,0.0011]
[1770441895062,1.18855186,2103.4,2103.0,0.0011]
[1770441895262,1.18841238,2103.7,2103.0,0.0011]
[1770441895571,1.18830271,2103.9,2103.0,0.0011]
[1770441895772,1.02159628,2103.8,2103.0,0.0011]
[1770441896078,1.18830271,2103.9,2103.0,0.0011]
[1770441896383,1.99075334,2103.8,2103.0,0.0011]
[1770441896581,0.9698414,2103.8,2103.0,0.0011]
[1770441897171,1.18838237,2103.7,2103.0,0.0011]
[1770441897762,1.18838237,2103.7,2103.2,0.0011]
[1770441899057,2.15822377,2103.7,2103.2,0.0011]
[1770441901591,0.9698414,2103.6,2103.2,0.0011]
[1770441901778,1.18849536,2103.5,2103.2,0.0011]
[1770441902670,0.9698414,2103.4,2103.2,0.0011]
[1770441902989,0.9698414,2103.4,2101.8,1.18944675]
[1770441902990,0.9698414,2102.8,2101.8,1.18944675]
[1770441903874,1.18894754,2102.7,2101.6,1.18956985]
[1770441904408,2.20905222,2102.7,2101.6,1.18956985]
[1770441904705,2.15878894,2102.7,2102.3,0.0011]
[1770441905765,0.93870547,2102.6,2102.3,0.0011]
[1770441906196,1.18906064,2102.5,2101.6,1.18956985]
[1770441906397,1.18906064,2102.5,2101.3,4.76003338]
[1770441906398,2.12776611,2102.5,2101.3,4.76003338]
[1770441906696,2.12776611,2102.5,2101.5,1.1896253]
[1770441909481,2.12776611,2102.5,2101.7,0.0011]
[1770441909885,1.18906064,2102.5,2101.7,0.0011]
[1770441910278,1.18894754,2102.7,2101.7,1.19061325]
[1770441910484,2.12248231,2102.7,2101.7,1.19061325]
[1770441910697,2.12248231,2102.7,2101.8,0.68846139]
[1770441910884,2.12248231,2102.7,2101.7,0.0011]
[1770441913010,0.93353477,2102.6,2101.7,0.0011]
[1770441913371,1.18894754,2102.7,2101.8,2.230005]
[1770441913578,0.93353477,2103.3,2101.9,0.93578333]
[1770441913773,0.93353477,2103.3,2102.1,0.93578333]
[1770441913989,0.93353477,2103.3,2101.8,0.93578333]
[1770441914213,0.93353477,2103.3,2101.9,2.231154]
[1770441914379,0.93353477,2103.3,2102.2,0.93578333]
[1770441914875,2.12219966,2103.2,2102.3,1.18917376]
[1770441915721,0.93353477,2103.5,2102.3,2.12495709]
[1770441915909,1.18850242,2103.5,2102.4,0.93578333]
[1770441916076,1.18815645,2104.1,2102.6,0.98604661]
[1770441916280,1.79588349,2104.1,2102.9,0.93578333]
[1770441916982,1.79588349,2104.1,2103.0,2.12456126]
[1770441917179,0.60772704,2104.1,2103.1,0.93578333]
[1770441917505,1.18793062,2104.5,2103.3,0.93578333]
[1770441917802,4.75264272,2104.6,2103.3,0.93578333]
[1770441917803,1.18888085,2104.6,2103.3,0.93578333]
[1770441918186,0.001,2104.6,2103.7,0.93578333]
[1770441918795,0.001,2104.6,2103.9,0.93578333]
[1770441919000,0.001,2104.6,2104.1,0.93578333]
[1770441919190,0.001,2105.1,2104.1,1.62346813]
[1770441919781,0.001,2105.1,2104.0,1.18821292]
[1770441919982,0.93453477,2105.1,2103.8,1.18829392]
[1770441920409,0.93453477,2105.1,2103.9,1.18826262]
[1770441920894,0.93353477,2104.7,2103.4,1.18855186]
[1770441921907,0.001,2104.4,2103.4,1.18855186]
[1770441922210,0.001,2104.4,2103.4,2.3518348]
[1770441922615,0.001,2104.4,2103.2,5.6899908]
[1770441922616,0.93353477,2103.9,2103.0,0.1024]
[1770441922920,0.05026328,2103.5,2101.9,5.013097]
[1770441923081,0.93353477,2103.5,2102.1,4.194067]
[1770441923289,0.93353477,2103.5,2102.3,2.471422]
[1770441923713,2.12186065,2103.8,2102.4,0.93578333]
[1770441924604,1.1,2103.6,2102.4,0.93578333]
[1770441925199,1.18849536,2103.5,2102.5,1.18906064]
[1770441925802,0.05026328,2103.2,2102.1,0.1024]
[1770441926121,1.18849536,2103.5,2099.4,7.39788009]
[1770441926122,30.93353477,2101.6,2099.4,7.39788009]
[1770441926285,0.29775968,2099.4,2098.9,0.05136328]
[1770441926485,0.93353477,2100.4,2099.6,0.05026328]
[1770441926684,0.1024,2100.6,2099.1,0.05026328]
[1770441926685,0.2335703,2099.8,2099.1,0.05026328]
[1770441926883,1.24961691,2099.7,2098.9,5.21712758]
[1770441927108,0.93353477,2099.3,2098.1,0.0011]
[1770441927296,1.26995881,2099.6,2099.2,0.05026328]
[1770441927599,0.2335703,2099.8,2099.0,0.05026328]
[1770441927798,0.2335703,2099.8,2098.2,0.98604661]